Workbook

Sheet Uebersicht
B2: Dividende versus Bonus, Kt. Zürich ab 2020
B4: 1. | C4: Ausgangslage
D6: Bilanzstichtag | I6: 2025-12-31 | K6: =YEAR(I6) -> 2025
D8: Dividendenfälligkeit | E8: (geplant, falls es zu einer Ausschüttung kommt) | I8: 2026-02-27 | K8: =YEAR(I8) -> 2026
D10: ="Steuerfuss Gemeinde jur. Personen "&TEXT(K6,"0000")& " am Sitz der Gesellschaft" -> Steuerfuss Gemeinde jur. Personen 2025 am Sitz der Gesellschaft | I10: 1.2254
D12: ="Steuerfuss Gemeinde nat. Personen "&TEXT(K8,"0000")&" am Wohnort des Aktionärs" -> Steuerfuss Gemeinde nat. Personen 2026 am Wohnort des Aktionärs | I12: 1.08
B14: 2. | C14: Rohgewinn der Gesellschaft
D15: (vor Boni an Gesellschafter und vor Steuern des aktuellen Geschäftsjahres)
D17: Reinerfolg der Gesellschaft | I17: 323914
D19: Eigenkapital der Gesellschaft | I19: 465915
B21: 3. | C21: Variante Dividende
D22: (mehr Unternehmenssteuern, weniger private Steuern)
D24: Steuerbelastung der Gesellschaft | G24: =Unternehmenssteuern!J31 -> 63099.52446
D26: Reingewinn nach Steuern - steht für Ausschüttung zur Verfügung | I26: =I17-G24 -> 260814.4755
D28: Mehrsteuern privat | E28: Staat und Gemeinde | F28: ( Nicht steuerbarer Anteil | G28: 0.5 | H28: ) | I28: =Privatbesteuerung!J34+Privatbesteuerung!K34-Privatbesteuerung!J23-Privatbesteuerung!K23 -> 43638.50968
E30: Bund | F30: ( Nicht steuerbarer Anteil | G30: 0.3 | H30: ) | I30: =Privatbesteuerung!L34-Privatbesteuerung!L23 -> 22374.45754
D32: Nettozufluss privat | I32: =I26-I28-I30 -> 194801.5083
D33: Total Steuern in Unternehmen und privat | F33: =I17-I32 -> 129112.4917 | G33: =F33/I17 -> 0.3986011462
B35: 4. | C35: Variante Bonus
D36: (weniger Unternehmenssteuern, mehr private Steuern)
D38: Bruttolohn Bonus | G38: =Bonusabrechnung!Bruttolohn -> 304479.0991
D39: Beiträge Sozialversicherungen | G39: =Bonusabrechnung!H14 -> -16137.39225
D40: Nettolohn Bonus | G40: =SUM(G38:G39) -> 288341.7069 | I40: =G40 -> 288341.7069
D42: Kosten Sozialversicherungen des Arbeitgebers | G42: =-Bonusabrechnung!J12 -> 35572.29315
D43: BVG: züsätzliche Kapitalleistung | F43: ( nach Steuerabzug von | G43: 0.15 | H43: ) | I43: =Bonusabrechnung!O49*Bonusabrechnung!J8*(1-G43) -> 0
D45: Mehrsteuern privat | E45: Staat und Gemeinde | I45: =Privatbesteuerung!J43+Privatbesteuerung!K43-Privatbesteuerung!J23-Privatbesteuerung!K23 -> 72627.52377
E46: Bund | I46: =Privatbesteuerung!L43-Privatbesteuerung!L23 -> 36336.3053
D48: Nettozufluss privat | I48: =I40-I45-I46+I43 -> 179377.8778
D49: Total Steuern in Unternehmen und privat | F49: =I17-I48 -> 144536.1222 | G49: =F49/I17 -> 0.4462175831
B51: 5. | C51: Ergebnis
D53: Bessere Variante | F53: =" "&IF(I32>I48,"Dividende","Bonus") -> Dividende | I53: =ABS(I32-I48) -> 15423.63054
E56: Dividende | F56: Bonus
D57: Steuern Gesellschaft | E57: =G24 -> 63099.52446 | F57: 0
D58: Steuern privat | E58: =I28+I30 -> 66012.96722 | F58: =I45+I46 -> 108963.8291
D59: Sozialvers. Arb.geber | E59: 0 | F59: =G42 -> 35572.29315
D60: Sozialvers. Arb.nehmer | E60: 0 | F60: =-Bonusabrechnung!H14 -> 16137.39225
B68: ="gedruckt am "&TEXT(TODAY(),"TT.MM.JJ") -> gedruckt am 18.02.26

Sheet Unternehmenssteuern
C2: ="Unternehmenssteuern "&D24 -> Unternehmenssteuern 2025 | M2: Vers. 1.6
J6: Zürich | L6: Bund
J7: Gewinn | K7: Kapital | L7: Gewinn | M7: Kapital
C9: Reinerfolg roh vor Steuern | J9: =Uebersicht!I17 -> 323914 | K9: =Uebersicht!I19 -> 465915 | L9: =Uebersicht!I17 -> 323914
C10: Korrekturen (z.B. Auflösung von besteuerten stillen Reserven)
C11: Abzug von Gewinnen, die der Grundstückgewinnsteuer unterliegen
C12: steuerbarer Jahres-Erfolg vor Steuern | J12: =MAX(0,SUM(J9:J11)) -> 323914 | K12: =MAX(0,SUM(K9:K11)) -> 465915 | L12: =MAX(0,SUM(L9:L11)) -> 323914
C14: Steuererleichterungen STAF
C15: Abzug von noch verrechenbaren Verlusten aus 7 vergangenen J.
C16: steuerbarer Erfolg nach Verrechnung vor Steuern | J16: =MAX(0,SUM(J12:J15)) -> 323914 | K16: =MAX(0,SUM(K12:K15)) -> 465915 | L16: =MAX(0,SUM(L12:L15)) -> 323914
C18: Rückstellung für Steuern | J18: -63099.52446 | K18: =J18 -> -63099.52446 | L18: =J18 -> -63099.52446
C19: steuerbarer Reinerfolg | J19: =MAX(0,SUM(J16:J18)) -> 260814.4755 | K19: =MAX(0,SUM(K16:K18)) -> 402815.4755 | L19: 260814.4755
C21: Steuersatz Gewinn / Kapital | J21: =VLOOKUP(D24,Staatssteuerfuss,5) -> 0.07 | K21: =VLOOKUP(D24,Staatssteuerfuss,6)*1000 -> 0.75 | L21: =VLOOKUP(D24,Staatssteuerfuss,7) -> 0.085
C23: Einfache Staatssteuer Gewinn / Kapital | J23: =J19*J21 -> 18257.01329 | K23: =K19*K21/1000 -> 302.1116067 | L23: =L19*L21 -> 22169.23042 | M23: =M19*-M21 -> 0
C24: Steuerjahr | D24: =Uebersicht!K6 -> 2025
C25: Steuerfuss | D25: Staat | H25: =VLOOKUP(D24,Staatssteuerfuss,2) -> 0.98 | J25: =J23*H25 -> 17891.87302 | K25: =K23*H25 -> 296.0693745
D27: Gemeinde | F27: Uster | H27: =Uebersicht!I10 -> 1.2254 | J27: =J23*H27 -> 22372.14408 | K27: =K23*H27 -> 370.2075628
C29: Steuern pro Kategorie | J29: =SUM(J25:J27) -> 40264.0171 | K29: =SUM(K25:K27) -> 666.2769373 | L29: =L23 -> 22169.23042 | M29: =M23 -> 0
C31: Total Steuern | J31: =SUM(J29:M29) -> 63099.52446
C34: Unternehmensgewinn nach Steuern | H34: =J9-J31 -> 260814.4755
C35: Zielwert | D35: =J31+J18 -> -8.731149137e-11

Sheet Privatbesteuerung
C2: ="Privatbesteuerung "&G28 -> Privatbesteuerung 2026 | L2: Vers. 1.6
C6: Jahr | E6: =G28 -> 2026 | J6: Zürich | L6: Bund
J7: Einkommen | K7: Vermögen | L7: Einkommen
C8: Gemeinde | E8: Mönchaltorf
H9: Steuerfuss
G11: Staat | H11: =VLOOKUP(E6,Staatssteuerfuss,2) -> 0.95
C13: Zivilstand | G13: Gemeinde | H13: =Uebersicht!I12 -> 1.08
A15: FALSE | D15: verheiratet / mit Kindern lebend | G15: Kirche | H15: 0
A17: TRUE | D17: ledig | G17: Total | H17: =SUM(H11+H13+H15) -> 2.03
C18: ="ZH_"&IF(A15,"EVT","EGT") -> ZH_EGT | D18: ="ZH_"&IF(A15,"VVT","VGT") -> ZH_VGT | E18: =VLOOKUP(E6,Staatssteuerfuss,3)&"!"&C18 -> Tarif2025!ZH_EGT | G18: =VLOOKUP(E6,Staatssteuerfuss,3)&"!"&D18 -> Tarif2025!ZH_VGT
C19: ="Bund_"&IF(A15,"B","A") -> Bund_A | E19: =G19&"!"&C19 -> Tarif2025!Bund_A | G19: =VLOOKUP(E6,Staatssteuerfuss,4) -> Tarif2025
C21: Steuerbares Einkommen / Vermögen ohne Bonus und Dividende | J21: 124000 | K21: 1700000 | L21: 124000
J22: =VLOOKUP(J21,INDIRECT($E$18),2)+(J21-VLOOKUP(J21,INDIRECT($E$18),1))*VLOOKUP(J21,INDIRECT($E$18),3) -> 8517 | K22: =VLOOKUP(K21,INDIRECT($G$18),2)+(K21-VLOOKUP(K21,INDIRECT($G$18),1))*VLOOKUP(K21,INDIRECT($G$18),3) -> 2166
C23: Steuern vor Dividende oder Bonus | J23: =J22*$H$17 -> 17289.51 | K23: =K22*$H$17 -> 4396.98 | L23: =VLOOKUP(L21,INDIRECT($E$19),2)+(L21-VLOOKUP(L21,INDIRECT($E$19),1))*VLOOKUP(L21,INDIRECT($E$19),3) -> 4606.4
D24: Total | J24: =SUM(J23:L23) -> 26292.89
B26: Variante mit Dividende
C28: Dividende, Fälligkeit | G28: =Uebersicht!K8 -> 2026 | J28: =Uebersicht!I26 -> 260814.4755 | L28: =Uebersicht!I26 -> 260814.4755
J29: =Uebersicht!G28 -> 0.5 | L29: =Uebersicht!G30 -> 0.3
C30: Teilbesteuerungsabzug | J30: =J28*-J29 -> -130407.2378 | L30: =L28*-L29 -> -78244.34266
C31: Veränderung Vermögen kapitalisiert | G31: 0.1 | K31: =J28/G31 -> 2608144.755
C32: Steuerbares Einkommen / Vermögen nach Dividende | J32: =J21+J28+J30 -> 254407.2378 | K32: =K21+K31 -> 4308144.755 | L32: =L21+L28+L30 -> 306570.1329
J33: =VLOOKUP(J32,INDIRECT($E$18),2)+(J32-VLOOKUP(J32,INDIRECT($E$18),1))*VLOOKUP(J32,INDIRECT($E$18),3) -> 23274.86853 | K33: =VLOOKUP(K32,INDIRECT($G$18),2)+(K32-VLOOKUP(K32,INDIRECT($G$18),1))*VLOOKUP(K32,INDIRECT($G$18),3) -> 8904.934266
J34: =J33*$H$17 -> 47247.98312 | K34: =K33*$H$17 -> 18077.01656 | L34: =VLOOKUP(L32,INDIRECT($E$19),2)+(L32-VLOOKUP(L32,INDIRECT($E$19),1))*VLOOKUP(L32,INDIRECT($E$19),3) -> 26980.85754
C35: Gesamtsteueraufwand privat Lohn inkl. Dividende | J35: =SUM(J34:L34) -> 92305.85722
B37: Variante mit Bonus
C39: Nettolohn aus Bonus | J39: =Bonusabrechnung!H15 -> 288341.7069 | K39: =J39 -> 288341.7069 | L39: =J39 -> 288341.7069
C40: Einfluss auf Abzüge in der Steuererklärung
C41: Steuerbares Einkommen / Vermögen nach Bonus | J41: =J21+J39+J40 -> 412341.7069 | K41: =K21+K39+K40 -> 1988341.707 | L41: =L21+L39+L40 -> 412341.7069
C42: einfache Staatssteuer | J42: =VLOOKUP(J41,INDIRECT($E$18),2)+(J41-VLOOKUP(J41,INDIRECT($E$18),1))*VLOOKUP(J41,INDIRECT($E$18),3) -> 43717.42189 | K42: =VLOOKUP(K41,INDIRECT($G$18),2)+(K41-VLOOKUP(K41,INDIRECT($G$18),1))*VLOOKUP(K41,INDIRECT($G$18),3) -> 2742.683414
J43: =J42*$H$17 -> 88746.36644 | K43: =K42*$H$17 -> 5567.64733 | L43: =VLOOKUP(L41,INDIRECT($E$19),2)+(L41-VLOOKUP(L41,INDIRECT($E$19),1))*VLOOKUP(L41,INDIRECT($E$19),3) -> 40942.7053
C44: Gesamtsteueraufwand für Bonus auf privater Seite | J44: =SUM(J43:L43) -> 135256.7191

Sheet Bonusabrechnung
C2: ="Jahreslohn-Abrechnung " -> Jahreslohn-Abrechnung | O2: Vers. 1.6
C4: Salär des Aktionärs bisher | J4: 160000
C6: für ein reales Pensum von | J6: 1
C8: BVG: Sparanteil der gesamten Beiträge | J8: 0.5
C11: Maximaler Bonus (Aufwand inkl. Soziallasten) | J11: =Uebersicht!I17 -> 323914
C12: Soziallasten total | J12: =-O50 -> -35572.29315
C13: Bruttolohn Aktionär (nur Bonus) | H13: 304479.0991
C14: Sozialabzüge Angestellter (nur Bonus) | H14: =-O33 -> -16137.39225
C15: Nettolohn Aktionär (nur Bonus) | H15: =SUM(H13:H14) -> 288341.7069 | J15: =-H15 -> -288341.7069
D16: Kontroll-Total | J16: =SUM(J11:J15) -> 0
B19: Lohnabrechnung | F19: bisher | J19: mit Bonus | O19: Differenz
F21: Ansatz | G21: Basis | H21: Betrag | J21: Ansatz | K21: Basis | L21: Betrag
C22: Lohn brutto | H22: =J4 -> 160000 | L22: =H22 -> 160000
C23: Bonus brutto | L23: =H13 -> 304479.0991
H24: =SUM(H22:H23) -> 160000 | L24: =SUM(L22:L23) -> 464479.0991 | O24: =L24-H24 -> 304479.0991
C26: AHV | F26: =(1-G41)*F41 -> 0.053 | G26: =H41 -> 160000 | H26: =F26*G26 -> 8480 | J26: =F26 -> 0.053 | K26: =J41 -> 464479.0991 | L26: =J26*K26 -> 24617.39225 | O26: =L26-H26 -> 16137.39225
C27: ALV 1 | F27: 0.011 | G27: 148200 | H27: 1630.2 | J27: =F27 -> 0.011 | K27: 148200 | L27: 1630.2 | O27: 0
C28: ALV 2 | F28: 0 | G28: 11800 | H28: 0 | J28: 0 | K28: 316279.0991 | L28: 0 | O28: 0
C29: BU | F29: 0 | G29: 148200 | H29: 0 | J29: 0 | K29: 148200 | L29: 0 | O29: 0
C30: NBUV | F30: 0.0121 | G30: 148200 | H30: 1793.22 | J30: 0.0121 | K30: 148200 | L30: 1793.22 | O30: 0
C31: KTG | F31: 0 | G31: 160000 | H31: 0 | J31: 0 | K31: 300000 | L31: 0 | O31: 0
C32: BVG | F32: =1-G49 -> 0.5 | G32: =K49 -> 15300 | H32: 7650 | J32: 0.5 | K32: =L49 -> 15300 | L32: 7650 | O32: 0
C33: Total Abzüge | H33: =SUM(H26:H32) -> 19553.42 | L33: =SUM(L26:L32) -> 35690.81225 | O33: =SUM(O26:O32) -> 16137.39225
C35: Nettolohn | H35: =H24-H33 -> 140446.58 | L35: =L24-L33 -> 428788.2869 | O35: =L35-H35 -> 288341.7069
B38: Aufwand Arbeitgeber (für Soziallasten) | K38: Kosten
D40: Maximum | F40: Ansatz | G40: Anteil AG | H40: Basis bis. | J40: Basis neu | K40: bisher | L40: neu
C41: AHV | F41: 0.106 | G41: 0.5 | H41: =H24 -> 160000 | J41: =L24 -> 464479.0991 | K41: =H41*F41 -> 16960 | L41: =J41*F41 -> 49234.78451 | O41: =L41-K41 -> 32274.78451
C42: ALV 1 | D42: 148200 | F42: 0.022 | G42: 0.5 | H42: =MIN(D42,H24) -> 148200 | J42: =MIN(D42,L24) -> 148200 | K42: 3260.4 | L42: 3260.4 | O42: 0
C43: ALV 2 | F43: 0 | G43: 0.5 | H43: =MAX(H24-D42,0) -> 11800 | J43: =MAX(L24-D42,0) -> 316279.0991 | K43: 0 | L43: 0 | O43: 0
C44: BU | D44: 148200 | F44: 0.0008 | G44: 1 | H44: =MIN(D44,H24) -> 148200 | J44: =MIN(D44,L24) -> 148200 | K44: 118.56 | L44: 118.56 | O44: 0
C45: NBUV | F45: 0.0121 | G45: 0 | H45: =MIN(D44,H24) -> 148200 | J45: =MIN(D44,L24) -> 148200 | K45: 1793.22 | L45: 1793.22 | O45: 0
C46: KTG | D46: 300000 | F46: 0 | G46: 0.5 | H46: =MIN(D46,H24) -> 160000 | J46: =MIN(D46,L24) -> 300000 | K46: 0 | L46: 0 | O46: 0
C47: FAK | F47: 0.0103 | G47: 1 | H47: =H41 -> 160000 | J47: =J41 -> 464479.0991 | K47: 1648 | L47: 4784.134721 | O47: 3136.134721
C48: AHV-Verwaltungskosten | F48: 0.005 | G48: 1 | H48: =H41*F41 -> 16960 | J48: =J41*F41 -> 49234.78451 | K48: 84.8 | L48: 246.1739225 | O48: 161.3739225
C49: BVG | F49: 15300 | G49: 0.5 | J49: 15300 | K49: =F49 -> 15300 | L49: =J49 -> 15300 | O49: 0
K50: =SUM(K41:K49) -> 39164.98 | L50: =SUM(L41:L49) -> 74737.27315 | O50: 35572.29315

Sheet Staat
A1: Staatssteuerfüsse
E2: einfacher Staatsst.satz
A3: Jahr | B3: Staatssteuerfuss | C3: Tarif Staat | D3: Tarif Bund | E3: Gewinn | F3: Kapital | G3: Bund
A4: 2020 | B4: 1 | C4: Tarif2012 | D4: Tarif2012 | E4: 0.08 | F4: 0.00075 | G4: 0.085
A5: 2021 | B5: 1 | C5: Tarif2012 | D5: Tarif2021 | E5: 0.07 | F5: 0.00075 | G5: 0.085
A6: 2022 | B6: 0.99 | C6: Tarif2012 | D6: Tarif2021 | E6: 0.07 | F6: 0.00075 | G6: 0.085
A7: 2023 | B7: 0.99 | C7: Tarif2012 | D7: Tarif2023 | E7: 0.07 | F7: 0.00075 | G7: 0.085
A8: 2024 | B8: 0.98 | C8: Tarif2024 | D8: Tarif2024 | E8: 0.07 | F8: 0.00075 | G8: 0.085
A9: 2025 | B9: 0.98 | C9: Tarif2025 | D9: Tarif2025 | E9: 0.07 | F9: 0.00075 | G9: 0.085
A10: 2026 | B10: 0.95 | C10: Tarif2025 | D10: Tarif2025 | E10: 0.07 | F10: 0.00075 | G10: 0.085

Sheet Tarif2012
A1: Kanton Zürich, Tarif 2012
A3: Einkommen - Tarif GT | E3: Einkommen - Tarif VT
A4: EINK | B4: STEUER | C4: PLUS | E4: EINK | F4: STEUER | G4: PLUS
A5: 0 | B5: 0 | C5: 0 | E5: 0 | F5: 0 | G5: 0
A6: 6700 | B6: 0 | C6: 0.02 | E6: 13500 | F6: 0 | G6: 0.02
A7: 11400 | B7: 94 | C7: 0.03 | E7: 19600 | F7: 122 | G7: 0.03
A8: 16100 | B8: 235 | C8: 0.04 | E8: 27300 | F8: 353 | G8: 0.04
A9: 23700 | B9: 539 | C9: 0.05 | E9: 36700 | F9: 729 | G9: 0.05
A10: 33000 | B10: 1004 | C10: 0.06 | E10: 47400 | F10: 1264 | G10: 0.06
A11: 43700 | B11: 1646 | C11: 0.07 | E11: 61300 | F11: 2098 | G11: 0.07
A12: 56100 | B12: 2514 | C12: 0.08 | E12: 92100 | F12: 4254 | G12: 0.08
A13: 73000 | B13: 3866 | C13: 0.09 | E13: 122900 | F13: 6718 | G13: 0.09
A14: 105500 | B14: 6791 | C14: 0.1 | E14: 169300 | F14: 10894 | G14: 0.1
A15: 137700 | B15: 10011 | C15: 0.11 | E15: 224700 | F15: 16434 | G15: 0.11
A16: 188700 | B16: 15621 | C16: 0.12 | E16: 284800 | F16: 23045 | G16: 0.12
A17: 254900 | B17: 23565 | C17: 0.13 | E17: 354100 | F17: 31361 | G17: 0.13
A22: Vermögen - Tarif GT | E22: Vermögen - Tarif VT
A23: VERM | B23: STEUER | C23: PLUS | E23: VERM | F23: STEUER | G23: PLUS
A24: 0 | B24: 0 | C24: 0 | E24: 0 | F24: 0 | G24: 0
A25: 77000 | B25: 0 | C25: 0.0005 | E25: 154000 | F25: 0 | G25: 0.0005
A26: 308000 | B26: 115.5 | C26: 0.001 | E26: 385000 | F26: 115.5 | G26: 0.001
A27: 694000 | B27: 501.5 | C27: 0.0015 | E27: 770000 | F27: 500.5 | G27: 0.0015
A28: 1310000 | B28: 1425.5 | C28: 0.002 | E28: 1386000 | F28: 1424.5 | G28: 0.002
A29: 2235000 | B29: 3275.5 | C29: 0.0025 | E29: 2311000 | F29: 3274.5 | G29: 0.0025
A30: 3158000 | B30: 5583 | C30: 0.003 | E30: 3235000 | F30: 5584.5 | G30: 0.003
A33: Bund - Tarif B (Verheiratete) | E33: Bund - Tarif A (Alleinstehend)
A34: EINK | B34: STEUER | C34: PLUS | E34: EINK | F34: STEUER | G34: PLUS
A35: 0 | B35: 0 | C35: 0 | E35: 0 | F35: 0 | G35: 0
A36: 28300 | B36: 0 | C36: 0.01 | E36: 17800 | F36: 25.41 | G36: 0.0077
A37: 51000 | B37: 228 | C37: 0.02 | E37: 31700 | F37: 132.53 | G37: 0.0088
A38: 58500 | B38: 379 | C38: 0.03 | E38: 41500 | F38: 220.54 | G38: 0.0264
A39: 75400 | B39: 887 | C39: 0.04 | E39: 55300 | F39: 585.17 | G39: 0.0297
A40: 90400 | B40: 1488 | C40: 0.05 | E40: 72600 | F40: 1101.94 | G40: 0.0594
A41: 103500 | B41: 2144 | C41: 0.06 | E41: 78200 | F41: 1435.2 | G41: 0.066
A42: 114800 | B42: 2823 | C42: 0.07 | E42: 103700 | F42: 3120.4 | G42: 0.088
A43: 124300 | B43: 3489 | C43: 0.08 | E43: 134700 | F43: 5850.6 | G43: 0.11
A44: 131800 | B44: 4090 | C44: 0.09 | E44: 176100 | F44: 10406.8 | G44: 0.132
A45: 137400 | B45: 4595 | C45: 0.1 | E45: 755300 | F45: 86859.5 | G45: 0.115
A46: 141300 | B46: 4986 | C46: 0.11
A47: 143200 | B47: 5196 | C47: 0.12
A48: 145100 | B48: 5425 | C48: 0.13
A49: 896000 | B49: 103040 | C49: 0.115

Sheet Tarif2024
A1: Kanton Zürich, Tarif 2024
A2: Tarife gelten auch 2025 noch: ph 16.09.25
A4: Einkommen - Tarif GT | E4: Einkommen - Tarif VT
A5: EINK | B5: STEUER | C5: PLUS | E5: EINK | F5: STEUER | G5: PLUS
A6: 0 | B6: 0 | C6: 0 | E6: 0 | F6: 0 | G6: 0
A7: 6900 | B7: 0 | C7: 0.02 | E7: 13900 | F7: 0 | G7: 0.02
A8: 11800 | B8: 98 | C8: 0.03 | E8: 20200 | F8: 126 | G8: 0.03
A9: 16600 | B9: 242 | C9: 0.04 | E9: 28200 | F9: 366 | G9: 0.04
A10: 24500 | B10: 558 | C10: 0.05 | E10: 37900 | F10: 754 | G10: 0.05
A11: 34100 | B11: 1038 | C11: 0.06 | E11: 49000 | F11: 1309 | G11: 0.06
A12: 45100 | B12: 1698 | C12: 0.07 | E12: 63300 | F12: 2167 | G12: 0.07
A13: 58000 | B13: 2601 | C13: 0.08 | E13: 95100 | F13: 4393 | G13: 0.08
A14: 75400 | B14: 3993 | C14: 0.09 | E14: 127000 | F14: 6945 | G14: 0.09
A15: 109000 | B15: 7017 | C15: 0.1 | E15: 174900 | F15: 11256 | G15: 0.1
A16: 142200 | B16: 10337 | C16: 0.11 | E16: 232100 | F16: 16976 | G16: 0.11
A17: 194900 | B17: 16134 | C17: 0.12 | E17: 294200 | F17: 23807 | G17: 0.12
A18: 263300 | B18: 24342 | C18: 0.13 | E18: 365800 | F18: 32399 | G18: 0.13
A23: Vermögen - Tarif GT | E23: Vermögen - Tarif VT
A24: VERM | B24: STEUER | C24: PLUS | E24: VERM | F24: STEUER | G24: PLUS
A25: 0 | B25: 0 | E25: 0 | F25: 0 | G25: 0
A26: 80000 | B26: 0 | C26: 0.0005 | E26: 159000 | F26: 0 | G26: 0.0005
A27: 318000 | B27: 119 | C27: 0.001 | E27: 398000 | F27: 119.5 | G27: 0.001
A28: 717000 | B28: 518 | C28: 0.0015 | E28: 795000 | F28: 516.5 | G28: 0.0015
A29: 1353000 | B29: 1472 | C29: 0.002 | E29: 1432000 | F29: 1472 | G29: 0.002
A30: 2309000 | B30: 3384 | C30: 0.0025 | E30: 2387000 | F30: 3382 | G30: 0.0025
A31: 3262000 | B31: 5766.5 | C31: 0.003 | E31: 3342000 | F31: 5769.5 | G31: 0.003
A34: Bund - Tarif B (Verheiratete) | E34: Bund - Tarif A (Alleinstehend)
A35: EINK | B35: STEUER | C35: PLUS | E35: EINK | F35: STEUER | G35: PLUS
A36: 0 | B36: 0 | C36: 0 | E36: 0 | G36: 0
A37: 31800 | B37: 25 | C37: 0.01 | E37: 18300 | F37: 25.41 | G37: 0.0077
A38: 52800 | B38: 236 | C38: 0.02 | E38: 32900 | F38: 137.93 | G38: 0.0088
A39: 60600 | B39: 393 | C39: 0.03 | E39: 43000 | F39: 228.54 | G39: 0.0264
A40: 78200 | B40: 922 | C40: 0.04 | E40: 57300 | F40: 606.37 | G40: 0.0297
A41: 93700 | B41: 1543 | C41: 0.05 | E41: 75300 | F41: 1143.94 | G41: 0.0594
A42: 107300 | B42: 2224 | C42: 0.06 | E42: 81100 | F42: 1489.1 | G42: 0.066
A43: 119100 | B43: 2933 | C43: 0.07 | E43: 107500 | F43: 3233.7 | G43: 0.088
A44: 128900 | B44: 3620 | C44: 0.08 | E44: 139700 | F44: 6069.5 | G44: 0.11
A45: 136700 | B45: 4245 | C45: 0.09 | E45: 182700 | F45: 10801.7 | G45: 0.132
A46: 142400 | B46: 4759 | C46: 0.1 | E46: 783300 | F46: 90079.5 | G46: 0.115
A47: 146400 | B47: 5160 | C47: 0.11
A48: 148400 | B48: 5381 | C48: 0.12
A49: 150400 | B49: 5622 | C49: 0.13
A50: 928700 | B50: 106800.5 | C50: 0.115

Sheet Tarif2025
A1: Kanton Zürich, Tarif 2025
A4: Einkommen - Tarif GT | E4: Einkommen - Tarif VT
A5: EINK | B5: STEUER | C5: PLUS | E5: EINK | F5: STEUER | G5: PLUS
A6: 0 | B6: 0 | C6: 0 | E6: 0 | F6: 0 | G6: 0
A7: 6900 | B7: 0 | C7: 0.02 | E7: 13900 | F7: 0 | G7: 0.02
A8: 11800 | B8: 98 | C8: 0.03 | E8: 20200 | F8: 126 | G8: 0.03
A9: 16600 | B9: 242 | C9: 0.04 | E9: 28200 | F9: 366 | G9: 0.04
A10: 24500 | B10: 558 | C10: 0.05 | E10: 37900 | F10: 754 | G10: 0.05
A11: 34100 | B11: 1038 | C11: 0.06 | E11: 49000 | F11: 1309 | G11: 0.06
A12: 45100 | B12: 1698 | C12: 0.07 | E12: 63300 | F12: 2167 | G12: 0.07
A13: 58000 | B13: 2601 | C13: 0.08 | E13: 95100 | F13: 4393 | G13: 0.08
A14: 75400 | B14: 3993 | C14: 0.09 | E14: 127000 | F14: 6945 | G14: 0.09
A15: 109000 | B15: 7017 | C15: 0.1 | E15: 174900 | F15: 11256 | G15: 0.1
A16: 142200 | B16: 10337 | C16: 0.11 | E16: 232100 | F16: 16976 | G16: 0.11
A17: 194900 | B17: 16134 | C17: 0.12 | E17: 294200 | F17: 23807 | G17: 0.12
A18: 263300 | B18: 24342 | C18: 0.13 | E18: 365800 | F18: 32399 | G18: 0.13
A23: Vermögen - Tarif GT | E23: Vermögen - Tarif VT
A24: VERM | B24: STEUER | C24: PLUS | E24: VERM | F24: STEUER | G24: PLUS
A25: 0 | B25: 0 | E25: 0 | F25: 0 | G25: 0
A26: 80000 | B26: 0 | C26: 0.0005 | E26: 159000 | F26: 0 | G26: 0.0005
A27: 318000 | B27: 119 | C27: 0.001 | E27: 398000 | F27: 119.5 | G27: 0.001
A28: 717000 | B28: 518 | C28: 0.0015 | E28: 795000 | F28: 516.5 | G28: 0.0015
A29: 1353000 | B29: 1472 | C29: 0.002 | E29: 1432000 | F29: 1472 | G29: 0.002
A30: 2309000 | B30: 3384 | C30: 0.0025 | E30: 2387000 | F30: 3382 | G30: 0.0025
A31: 3262000 | B31: 5766.5 | C31: 0.003 | E31: 3342000 | F31: 5769.5 | G31: 0.003
A35: Neuer Tarif 2025 am 16.09.25 erfasst, ph
A36: Bund - Tarif B (Verheiratete) | E36: Bund - Tarif A (Alleinstehend)
A37: EINK | B37: STEUER | C37: PLUS | E37: EINK | F37: STEUER | G37: PLUS
A38: 0 | B38: 0 | C38: 0 | E38: 0 | G38: 0
A39: 29700 | B39: 0 | C39: 0.01 | E39: 15200 | F39: 0 | G39: 0.0077
A40: 53400 | B40: 237 | C40: 0.02 | E40: 33200 | F40: 138.6 | G40: 0.0088
A41: 61300 | B41: 395 | C41: 0.03 | E41: 43500 | F41: 229.2 | G41: 0.0264
A42: 79100 | B42: 929 | C42: 0.04 | E42: 58000 | F42: 612 | G42: 0.0297
A43: 94900 | B43: 1561 | C43: 0.05 | E43: 76100 | F43: 1149.55 | G43: 0.0594
A44: 108600 | B44: 2246 | C44: 0.06 | E44: 82000 | F44: 1500 | G44: 0.066
A45: 120500 | B45: 2960 | C45: 0.07 | E45: 108800 | F45: 3268.8 | G45: 0.088
A46: 13500 | B46: 3660 | C46: 0.08 | E46: 141500 | F46: 6146.4 | G46: 0.11
A47: 138300 | B47: 4284 | C47: 0.09 | E47: 184900 | F47: 10920.4 | G47: 0.132
A48: 144200 | B48: 4815 | C48: 0.1 | E48: 793400 | F48: 91241 | G48: 0.115
A49: 148200 | B49: 5215 | C49: 0.11
A50: 150300 | B50: 5446 | C50: 0.12
A51: 152300 | B51: 5686 | C51: 0.13
A52: 940900 | B52: 108203.5 | C52: 0.115
